bitfinex-derivatives/quotes_SOLF0:USTF0_20260202
["timestamp","ask_amount","ask_price","bid_price","bid_amount"]
[1769995137843,62.26417312,101.78,101.68,137.806]
[1769995138047,39.5732422,101.76,101.66,137.8353]
[1769995138249,62.26417312,101.75,101.64,137.8709]
[1769995138547,39.5732422,101.71,101.62,399.7075]
[1769995138752,39.5732422,101.71,101.62,261.82]
[1769995139053,39.5732422,101.71,101.64,137.87]
[1769995139252,39.5732422,101.71,101.63,399.8638]
[1769995139456,101.83679942,101.71,101.61,137.9122]
[1769995139650,101.83679942,101.71,101.6,399.965]
[1769995139854,101.83679942,101.71,101.61,8.8649]
[1769995140148,137.7374,101.74,101.64,137.8711]
[1769995140149,39.5732422,101.74,101.64,137.8711]
[1769995140449,101.83816014,101.74,101.63,137.8846]
[1769995140658,62.26491794,101.73,101.64,146.7322]
[1769995140844,62.26491794,101.73,101.64,8.8627]
[1769995141043,39.5732422,101.74,101.64,146.7322]
[1769995141249,62.26491794,101.73,101.63,137.8846]
[1769995141450,39.5732422,101.71,101.61,400.1026]
[1769995141649,39.5732422,101.71,101.63,146.7478]
[1769995141855,39.5732422,101.71,101.62,137.8952]
[1769995142052,39.5732422,101.68,101.58,137.9444]
[1769995142256,101.83816014,101.68,101.58,146.8207]
[1769995142453,239.69776014,101.65,101.54,138.0074]
[1769995142649,39.5732422,101.65,101.57,137.9646]
[1769995142848,39.5732422,101.65,101.57,137.9617]
[1769995143054,101.87532886,101.68,101.59,137.9388]
[1769995143355,101.87532886,101.68,101.57,400.2017]
[1769995143751,39.5732422,101.65,101.57,262.24]
[1769995144054,39.5732422,101.65,101.57,400.2063]
[1769995144254,39.5732422,101.65,101.57,262.24]
[1769995144645,101.87398889,101.65,101.55,8.8706]
[1769995144849,39.5732422,101.62,101.55,137.991]
[1769995145050,39.5732422,101.62,101.53,262.72]
[1769995145745,62.30074669,101.61,101.5,138.0504]
[1769995145952,39.5732422,101.59,101.5,138.0532]
[1769995146153,239.86288889,101.56,101.45,138.1267]
[1769995146347,101.87398889,101.56,101.47,138.0955]
[1769995146567,101.8690101,101.59,101.49,138.075]
[1769995146855,101.8690101,101.59,101.49,401.295]
[1769995147056,239.8151101,101.59,101.49,263.22]
[1769995147246,239.8090101,101.59,101.48,401.2849]
[1769995147651,62.2956178,101.57,101.48,263.2]
[1769995147857,62.2956178,101.57,101.45,138.1293]
[1769995147858,39.5732422,101.56,101.45,138.1293]
[1769995148160,39.5732422,101.59,101.5,138.0608]
[1769995148353,39.5732422,101.59,101.5,401.5808]
[1769995148555,39.5732422,101.59,101.5,263.52]
[1769995148755,101.88525009,101.59,101.5,401.5739]
[1769995148952,239.82655009,101.59,101.5,263.52]
[1769995149157,239.82655009,101.59,101.47,138.0967]
[1769995149158,39.5732422,101.56,101.48,263.68]
[1769995149558,39.5732422,101.56,101.49,138.0748]
[1769995149861,39.5732422,101.56,101.48,138.0886]
[1769995150258,39.5732422,101.56,101.49,138.0742]
[1769995150562,39.5732422,101.56,101.47,138.0967]
[1769995151056,62.31200789,101.58,101.5,138.0541]
[1769995151261,62.31200789,101.58,101.5,402.1211]
[1769995151460,62.36455885,101.61,101.52,138.0341]
[1769995151656,62.36455885,101.6,101.49,138.0682]
[1769995151865,62.36455885,101.6,101.51,138.0477]
[1769995152053,39.5732422,101.62,101.52,138.0297]
[1769995152361,39.5732422,101.62,101.52,411.1233]
[1769995152559,62.36648818,101.61,101.52,264.22]
[1769995152764,62.36648818,101.61,101.5,402.2417]
[1769995153061,62.36648818,101.61,101.51,138.0466]
[1769995153665,62.36648818,101.61,101.52,138.0346]
[1769995153964,62.36648818,101.61,101.51,146.9208]
[1769995154164,239.79913038,101.65,101.54,138.0016]
[1769995154356,62.36648818,101.64,101.54,138.0016]
[1769995154664,62.36241754,101.63,101.54,138.0021]
[1769995154864,39.5732422,101.62,101.53,402.2986]
[1769995155262,101.93565974,101.59,101.5,8.8751]
[1769995155566,62.36241754,101.58,101.49,138.0749]
[1769995156157,39.5732422,101.59,101.51,138.0473]
[1769995157061,62.36241754,101.61,101.53,138.0186]
[1769995157265,239.83787415,101.65,101.54,138.0046]
[1769995157765,239.83787415,101.65,101.53,402.3186]
[1769995157766,39.5732422,101.62,101.53,264.3]
[1769995157966,62.39573195,101.63,101.55,137.9891]
[1769995158168,62.39573195,101.66,101.58,137.9524]
[1769995158467,39.5732422,101.71,101.62,137.8911]
[1769995158667,101.97702771,101.71,101.62,8.8643]
[1769995158865,101.97702771,101.71,101.63,137.8797]
[1769995159068,101.97702771,101.74,101.64,137.8666]
[1769995159264,62.40378551,101.73,101.64,8.863]
[1769995159459,62.40378551,101.73,101.64,146.7341]
[1769995159661,62.40378551,101.73,101.63,402.5797]
[1769995159662,62.40378551,101.73,101.62,137.8978]
[1769995159869,39.5732422,101.71,101.62,8.8646]
[1769995160167,39.5732422,101.71,101.62,146.7633]
[1769995160472,62.40378551,101.7,101.61,264.62]
[1769995160673,62.40378551,101.7,101.62,137.8986]
[1769995160867,62.40378551,101.7,101.6,146.7906]
[1769995161171,101.97702771,101.7,101.6,137.9243]
[1769995161368,101.97702771,101.7,101.61,137.9122]
[1769995161672,62.44319772,101.69,101.59,137.9347]
[1769995162068,62.44319772,101.69,101.6,146.7916]
[1769995162268,137.7688,101.72,101.64,137.8699]
[1769995162269,62.44319772,101.72,101.64,137.8699]
[1769995162464,102.02528604,101.76,101.66,137.8427]
[1769995162665,239.73558604,101.76,101.66,273.241]
[1769995162864,102.02528604,101.73,101.64,137.8699]
[1769995163069,102.02528604,101.73,101.65,137.8564]
[1769995163372,62.45204384,101.75,101.65,146.7183]
[1769995163563,62.45204384,101.74,101.65,8.8619]
[1769995163766,62.45204384,101.74,101.65,146.719]
[1769995164066,62.45204384,101.74,101.65,8.8619]
[1769995164266,102.02528604,101.73,101.65,137.8566]
[1769995164462,137.6962,101.77,101.65,137.8566]
[1769995164463,102.02528604,101.76,101.65,137.8566]
[1769995164762,62.54555323,101.75,101.63,137.8731]
[1769995164968,62.54555323,101.72,101.61,137.9005]
[1769995165169,39.5732422,101.7,101.61,264.52]
[1769995165368,39.5732422,101.7,101.61,411.2972]
[1769995165768,39.5732422,101.67,101.59,146.8066]
[1769995165972,39.5732422,101.67,101.61,137.9113]
[1769995166176,39.5732422,101.7,101.62,137.8988]
[1769995166473,62.54555323,101.72,101.63,137.8808]
[1769995166872,62.54555323,101.72,101.62,137.8988]
[1769995167072,62.54555323,101.72,101.61,402.6113]
[1769995167073,62.54555323,101.72,101.61,411.4765]
[1769995167372,62.54555323,101.72,101.61,402.6113]
[1769995167573,39.5732422,101.7,101.6,137.9246]
[1769995167782,39.5732422,101.7,101.61,411.6773]
[1769995167976,39.5732422,101.7,101.61,402.8119]
[1769995168181,102.10391709,101.7,101.61,264.9]
[1769995168380,39.5732422,101.67,101.61,264.9]
[1769995168577,177.4059422,101.67,101.55,137.9937]
[1769995168778,39.5732422,101.64,101.55,411.8843]
[1769995168986,101.98289607,101.64,101.53,138.0085]
[1769995169277,239.85819607,101.64,101.53,403.1407]
[1769995169580,101.98289607,101.64,101.54,138.0074]
[1769995169875,101.98289607,101.64,101.53,403.1407]
[1769995170182,101.98289607,101.61,101.52,276.0528]
[1769995170374,101.98289607,101.61,101.51,403.7473]
[1769995170574,101.98289607,101.61,101.52,146.9076]
[1769995170769,101.98289607,101.61,101.53,138.0195]
[1769995170973,39.5732422,101.61,101.54,8.8716]
[1769995171178,101.97381358,101.61,101.51,138.0473]
[1769995171376,39.5732422,101.61,101.52,138.0347]
[1769995171576,62.40057138,101.63,101.54,8.8716]
[1769995171774,62.40057138,101.63,101.53,265.84]
[1769995171975,200.28747138,101.63,101.53,265.84]
[1769995172173,39.5732422,101.61,101.53,403.8607]
[1769995172574,248.6626245,101.67,101.56,146.8493]
[1769995172778,137.8061,101.69,101.57,137.9554]
[1769995172975,39.5732422,101.7,101.6,137.9223]
[1769995173182,39.5732422,101.7,101.61,275.0655]
[1769995173379,39.5732422,101.73,101.63,137.8835]
[1769995173579,62.3953823,101.75,101.66,137.8446]
[1769995173778,62.3953823,101.75,101.65,137.8563]
[1769995173979,62.3953823,101.75,101.64,404.0704]
[1769995174175,39.5732422,101.76,101.66,137.8404]
[1769995174375,39.5732422,101.76,101.67,8.8603]
[1769995174581,39.5732422,101.79,101.71,137.7754]
[1769995174880,102.07278462,101.79,101.71,266.36]
[1769995175087,102.07278462,101.76,101.65,137.846]
[1769995175387,102.07278462,101.76,101.67,8.8602]
[1769995175586,102.07278462,101.76,101.62,137.8865]
[1769995175587,39.5732422,101.73,101.63,137.8838]
[1769995175787,39.5732422,101.73,101.64,404.4509]
[1769995176483,39.5732422,101.73,101.64,266.58]
[1769995176682,39.5732422,101.7,101.6,137.9144]
[1769995176983,39.5732422,101.67,101.57,413.5069]
[1769995177186,102.0729179,101.67,101.57,275.5487]
[1769995177380,102.0729179,101.67,101.56,404.5404]
[1769995177381,62.4996757,101.66,101.56,404.5404]
[1769995177679,39.5732422,101.67,101.59,137.9343]
[1769995177886,39.5732422,101.67,101.58,404.4714]
[1769995178088,39.5732422,101.67,101.59,146.8069]
[1769995178283,39.5732422,101.67,101.59,8.8672]
[1769995178684,102.10425358,101.67,101.57,146.8358]
[1769995178887,102.10425358,101.67,101.57,275.3691]
[1769995179281,110.96515358,101.67,101.57,413.3354]
[1769995179491,39.5732422,101.67,101.59,137.9329]
[1769995179787,39.5732422,101.7,101.61,137.9115]
[1769995179988,62.53101138,101.71,101.61,137.9115]
[1769995179989,62.53101138,101.71,101.63,137.8852]
[1769995180184,39.5732422,101.7,101.62,266.36]
[1769995180487,39.5732422,101.7,101.62,137.8949]
[1769995180690,62.53101138,101.71,101.63,404.3653]
[1769995180991,39.5732422,101.7,101.63,266.48]
[1769995181588,62.53101138,101.71,101.63,404.3645]
[1769995181785,62.53101138,101.71,101.61,137.9102]
[1769995182287,71.38831138,101.71,101.6,413.6302]
[1769995182584,39.5732422,101.67,101.58,137.9512]
[1769995182779,39.5732422,101.67,101.59,137.9389]
[1769995182983,62.53346433,101.69,101.6,146.7887]
[1769995183179,62.53346433,101.69,101.57,137.957]
[1769995183180,39.5732422,101.67,101.57,137.957]
[1769995183378,39.5732422,101.67,101.54,138.0012]
[1769995183379,39.5732422,101.64,101.54,138.0012]
[1769995183583,110.98099801,101.64,101.54,275.9114]
[1769995183789,39.5732422,101.61,101.52,405.0341]
[1769995183983,39.5732422,101.61,101.53,8.8724]
[1769995184184,39.5732422,101.61,101.54,138.0072]
[1769995184390,26.475046,101.62,101.53,138.019]
[1769995184690,26.475046,101.62,101.52,413.9071]
[1769995184891,26.475046,101.62,101.52,405.0341]
[1769995185186,26.475046,101.62,101.53,266.94]
[1769995185384,26.475046,101.62,101.53,266.92]
[1769995185690,62.54608781,101.61,101.53,266.92]
[1769995185892,26.475046,101.59,101.5,138.0599]
[1769995186388,26.475046,101.59,101.49,405.0449]
[1769995186581,26.475046,101.59,101.5,138.0587]
[1769995186782,26.475046,101.59,101.5,404.9787]
[1769995187179,26.475046,101.59,101.51,146.9206]
[1769995187378,26.475046,101.62,101.52,138.034]
[1769995187694,26.475046,101.62,101.53,266.96]
[1769995187989,89.02116537,101.62,101.52,146.9074]
[1769995188290,89.02116537,101.62,101.52,413.8474]
[1769995188788,89.02116537,101.62,101.53,146.893]
[1769995189384,62.5397171,101.61,101.52,266.94]
[1769995189583,62.5397171,101.61,101.52,404.9721]
[1769995189982,62.5397171,101.61,101.52,413.8452]
[1769995191592,62.5397171,101.61,101.52,275.8131]
[1769995192088,62.5397171,101.61,101.53,8.8724]
[1769995192388,62.5397171,101.61,101.52,266.94]
[1769995192793,62.53805092,101.58,101.48,138.0772]
[1769995192984,89.01309692,101.56,101.47,138.0906]
[1769995193189,89.01309692,101.56,101.48,138.0871]
[1769995193489,89.01309692,101.56,101.49,8.8758]
[1769995193893,89.01309692,101.56,101.49,146.9506]
[1769995194094,26.475046,101.59,101.5,146.9369]
[1769995194290,62.53805092,101.58,101.48,138.0871]
[1769995194889,62.53805092,101.58,101.48,8.8768]
[1769995194890,89.01206464,101.56,101.48,8.8768]
[1769995195093,89.01206464,101.56,101.47,138.1023]
[1769995195387,89.01206464,101.56,101.48,8.8769]
[1769995195790,62.53701864,101.55,101.46,138.1155]
[1769995195993,137.954,101.58,101.45,138.1176]
[1769995195994,62.53701864,101.65,101.53,138.0207]
[1769995196295,62.53701864,101.65,101.55,137.9931]
[1769995196491,62.53701864,101.62,101.51,405.2676]
[1769995196994,71.40221864,101.62,101.52,8.8731]
[1769995197484,62.53701864,101.62,101.54,8.8716]
[1769995197790,62.53701864,101.62,101.53,267.34]
[1769995197989,62.53701864,101.62,101.53,405.3608]
[1769995198588,62.58880498,101.59,101.51,138.0461]
[1769995199897,62.58880498,101.62,101.53,138.0175]
[1769995200389,62.58880498,101.62,101.54,138.0073]
[1769995200591,62.58880498,101.62,101.52,138.0312]
[1769995200900,62.58650944,101.59,101.51,8.874]
[1769995201089,89.06155544,101.63,101.53,138.0212]
[1769995201288,89.06155544,101.63,101.55,137.9807]
[1769995201595,200.41850944,101.67,101.56,137.9804]
[1769995201896,62.58650944,101.67,101.6,137.924]
[1769995202093,89.06155544,101.71,101.62,137.8989]
[1769995202389,137.7486,101.74,101.65,137.8572]
[1769995202390,26.475046,101.74,101.65,137.8572]
[1769995202591,89.05894174,101.74,101.64,267.94]
[1769995202894,26.475046,101.71,101.63,137.8848]
[1769995203095,62.58389574,101.72,101.64,8.8627]
[1769995203791,62.58389574,101.72,101.64,137.8709]
[1769995203993,26.475046,101.74,101.65,137.856]
[1769995204189,26.475046,101.77,101.69,137.8005]
[1769995204492,8.8497,101.8,101.7,405.5865]
[1769995204493,89.05894174,101.8,101.7,405.5865]
[1769995204888,62.58389574,101.8,101.72,137.7615]
[1769995205085,89.06547852,101.83,101.73,137.7495]
[1769995205288,62.59043252,101.82,101.71,267.78]
[1769995205486,62.59043252,101.79,101.71,267.78]
[1769995205687,62.59043252,101.82,101.73,137.7459]
[1769995205995,137.5719,101.87,101.73,137.7488]
[1769995205996,62.59043252,101.84,101.73,137.7488]
[1769995206393,62.59043252,101.84,101.7,137.7794]
[1769995206394,62.59043252,101.81,101.7,137.7794]
[1769995206693,62.59168357,101.78,101.68,137.8114]
[1769995206892,62.59168357,101.78,101.69,137.8034]
[1769995207093,62.59168357,101.81,101.73,137.7475]
[1769995207293,26.475046,101.82,101.73,137.7475]
[1769995207490,26.475046,101.79,101.68,406.246]
[1769995207692,62.59171103,101.77,101.66,406.2957]
[1769995208002,89.06675703,101.76,101.67,137.8303]
[1769995208203,89.06675703,101.76,101.68,137.817]
[1769995208500,89.06675703,101.76,101.67,137.8303]
[1769995208800,89.06675703,101.76,101.67,137.8286]
[1769995208998,89.06675703,101.76,101.68,137.8101]
[1769995209398,89.06675703,101.76,101.66,137.8357]
[1769995209595,89.06675703,101.76,101.67,137.8294]
[1769995209997,89.06675703,101.76,101.67,146.6899]
[1769995210196,89.06675703,101.76,101.66,137.8357]
[1769995210392,89.06675703,101.76,101.68,146.6762]
[1769995210695,89.06675703,101.76,101.67,137.8251]
[1769995210696,62.61911196,101.75,101.67,137.8296]
[1769995210896,26.475046,101.76,101.68,137.8167]
[1769995211104,26.475046,101.76,101.67,137.8296]
[1769995211394,89.09415796,101.76,101.68,137.8157]
[1769995211602,89.09415796,101.79,101.69,137.8025]
[1769995211996,62.61911196,101.78,101.69,146.6613]
[1769995212196,62.61911196,101.77,101.66,137.8357]
[1769995212493,62.59317137,101.8,101.71,137.7684]
[1769995212693,89.06821737,101.8,101.7,406.6404]
[1769995212895,89.06821737,101.8,101.72,137.7622]
[1769995213102,89.06821737,101.83,101.73,146.6013]
[1769995213296,89.06821737,101.83,101.74,137.7354]
[1769995213494,89.06821737,101.83,101.72,406.6422]
[1769995213696,89.06821737,101.83,101.72,277.7359]
[1769995213697,62.59317137,101.82,101.72,277.7359]
[1769995213904,62.59317137,101.82,101.73,137.7493]
[1769995214199,62.59317137,101.82,101.7,268.86]
[1769995214200,62.59317137,101.79,101.7,268.86]
[1769995214393,200.26187137,101.79,101.68,137.8149]
[1769995214594,89.06821737,101.77,101.66,406.6934]
[1769995214803,26.475046,101.74,101.66,268.86]
[1769995214997,26.475046,101.74,101.66,137.8367]
[1769995215198,62.53138987,101.75,101.65,137.854]
[1769995215697,62.53138987,101.75,101.66,137.8401]
[1769995216099,26.475046,101.73,101.64,406.9681]
[1769995216500,62.53138987,101.75,101.64,406.9681]
[1769995216702,26.475046,101.73,101.65,8.8615]
[1769995216899,26.475046,101.73,101.64,406.9681]
[1769995216900,26.475046,101.73,101.64,269.1]
[1769995217100,26.475046,101.73,101.64,406.9684]
[1769995217300,26.475046,101.73,101.66,137.843]
[1769995217702,26.475046,101.73,101.65,137.8574]
[1769995217904,26.475046,101.73,101.66,8.8609]
[1769995218097,88.9933957,101.73,101.64,269.1]
[1769995218900,62.50209315,101.72,101.64,269.1]
[1769995219100,26.475046,101.7,101.62,269.32]
[1769995219500,26.475046,101.7,101.62,278.1844]
[1769995219701,26.475046,101.7,101.61,137.9002]
[1769995219702,200.30949315,101.69,101.57,137.9544]
[1769995219907,88.97713915,101.67,101.56,137.9712]
[1769995220108,26.475046,101.64,101.56,407.6578]
[1769995220307,26.475046,101.64,101.56,269.68]
[1769995220502,26.475046,101.64,101.56,269.88]
[1769995220704,26.475046,101.64,101.56,407.8578]
[1769995220906,26.475046,101.64,101.56,269.88]
[1769995221105,20.35593597,101.64,101.56,269.88]
[1769995221507,82.84981511,101.64,101.54,146.8788]
[1769995221710,20.35593597,101.61,101.52,138.0237]
[1769995221908,20.35593597,101.61,101.53,146.893]
[1769995222309,20.35593597,101.61,101.52,138.0237]
[1769995222612,62.49387914,101.57,101.48,138.0877]
[1769995222913,62.49387914,101.57,101.46,408.356]
[1769995222914,62.49906938,101.57,101.46,408.356]
[1769995223113,20.35593597,101.55,101.45,138.1287]
[1769995223308,20.35593597,101.52,101.42,138.1699]
[1769995223509,62.49906938,101.51,101.4,147.0708]
[1769995223709,20.35593597,101.49,101.4,8.884]
[1769995223909,146.9112,101.52,101.4,8.884]
[1769995223910,20.35593597,101.52,101.42,138.1698]
[1769995224109,20.35593597,101.52,101.43,270.46]
[1769995224310,20.35593597,101.52,101.44,138.1424]
[1769995224506,20.35593597,101.52,101.44,270.48]
[1769995224711,475.21500535,101.55,101.44,408.6217]
[1769995225008,62.46786958,101.54,101.44,408.6217]
[1769995225215,62.46786958,101.54,101.44,270.48]
[1769995225413,62.46786958,101.54,101.44,408.6233]
[1769995225607,62.46786958,101.54,101.44,408.6231]
[1769995225808,62.46786958,101.54,101.44,417.5037]
[1769995226414,20.35593597,101.55,101.47,138.101]
[1769995226610,82.82380555,101.58,101.49,138.0683]
[1769995226816,82.82380555,101.58,101.49,270.52]
[1769995227012,20.35593597,101.58,101.49,408.5944]
[1769995227214,82.83252995,101.61,101.5,138.0564]
[1769995227819,82.83252995,101.64,101.54,138.0073]
[1769995228014,62.47659398,101.64,101.56,137.9752]
[1769995228209,20.35593597,101.66,101.57,137.9661]
[1769995228713,20.35593597,101.66,101.57,271.06]
[1769995228914,20.35593597,101.66,101.58,137.9522]
[1769995229110,20.35593597,101.69,101.61,137.9115]
[1769995229416,82.83185247,101.68,101.57,137.9662]
[1769995229617,62.4759165,101.67,101.58,271.14]
[1769995229814,20.35593597,101.65,101.58,271.14]
[1769995230624,20.35593597,101.65,101.55,409.6221]
[1769995230819,82.83730783,101.65,101.55,409.6221]
[1769995231016,62.48137186,101.64,101.55,271.64]
[1769995231225,62.48137186,101.61,101.5,138.0492]
[1769995231412,62.48137186,101.61,101.51,138.0468]
[1769995231618,20.35593597,101.62,101.53,138.02]
[1769995231818,20.35593597,101.62,101.53,409.74]
[1769995232016,62.48137186,101.64,101.54,138.0071]
[1769995232217,62.48137186,101.64,101.54,271.72]
[1769995232416,62.48137186,101.64,101.55,137.9915]
[1769995232612,20.35593597,101.62,101.54,271.72]
[1769995232818,20.35593597,101.62,101.54,138.007]
[1769995233218,20.35593597,101.62,101.54,409.7864]
[1769995233521,82.83841129,101.62,101.51,138.0466]
[1769995233718,20.35593597,101.59,101.5,272.0]
[1769995233921,20.35593597,101.59,101.51,410.1879]
[1769995234121,20.35593597,101.59,101.52,138.0339]
[1769995234422,146.7502,101.63,101.52,138.0339]
[1769995234423,62.48247532,101.63,101.55,137.9938]
[1769995234623,62.48247532,101.66,101.56,137.9802]
[1769995234925,62.48247532,101.66,101.57,272.5]
[1769995235125,62.48247532,101.66,101.57,419.3321]
[1769995235320,20.35593597,101.67,101.58,137.9501]
[1769995235517,82.84257811,101.67,101.58,272.56]
[1769995235923,82.84257811,101.67,101.57,419.3952]
[1769995236620,20.35593597,101.7,101.59,146.8037]
[1769995236822,82.82167415,101.7,101.59,419.2237]
[1769995237019,62.46573818,101.69,101.59,281.2872]
[1769995237525,62.46573818,101.69,101.59,419.2268]
[1769995238117,62.46573818,101.69,101.6,146.788]
[1769995238323,62.46573818,101.69,101.61,137.906]
[1769995238525,62.46579741,101.72,101.63,137.8797]
[1769995238719,62.46579741,101.72,101.63,410.2797]
[1769995238925,20.35593597,101.73,101.64,146.7309]
[1769995239432,20.35593597,101.73,101.65,8.8615]
[1769995239626,62.46910262,101.72,101.62,137.8971]
[1769995239826,62.46910262,101.72,101.64,137.8697]
[1769995240025,62.46910262,101.72,101.64,146.7324]
[1769995240226,20.35593597,101.73,101.65,137.8548]
[1769995240427,20.35593597,101.73,101.64,137.8697]
[1769995240824,62.47200309,101.72,101.62,137.8987]
[1769995241026,62.47200309,101.72,101.63,137.8851]
[1769995241223,20.35593597,101.7,101.62,272.32]
[1769995241523,200.27680309,101.69,101.58,137.9416]
[1769995241729,62.47200309,101.69,101.6,137.9258]
[1769995242021,62.47200309,101.69,101.61,146.7776]
[1769995242228,20.35593597,101.7,101.61,410.2523]
[1769995242528,20.35593597,101.7,101.62,137.8934]
[1769995242727,62.47200309,101.72,101.63,137.8846]
[1769995243029,62.47178561,101.75,101.65,137.8543]
[1769995243429,62.47178561,101.75,101.66,8.8608]
[1769995243624,62.47178561,101.75,101.67,137.8275]
[1769995243934,20.35593597,101.76,101.68,146.6752]
[1769995244130,20.35593597,101.76,101.68,8.8593]
[1769995244330,82.82772158,101.78,101.68,137.8173]
[1769995244530,82.82772158,101.78,101.69,146.6556]
[1769995244826,82.82772158,101.78,101.7,137.7887]
[1769995245026,82.84370101,101.81,101.72,146.6119]
[1769995245235,82.84370101,101.78,101.68,137.8159]
[1769995245532,82.84370101,101.78,101.68,410.0759]
[1769995245919,82.84370101,101.78,101.7,137.7867]
[1769995246119,82.84370101,101.78,101.68,410.0759]
[1769995246427,62.48769155,101.76,101.68,272.26]
[1769995246627,62.48769155,101.76,101.65,410.0059]
[1769995246628,30.45800762,101.74,101.65,410.0059]
[1769995246824,92.99793677,101.74,101.65,272.16]
[1769995247024,92.99793677,101.74,101.63,272.28]
[1769995247025,30.45800762,101.71,101.63,272.28]
[1769995247221,92.99793677,101.71,101.61,137.9007]
[1769995247423,30.45800762,101.68,101.6,137.9261]
[1769995247626,92.99793677,101.68,101.59,272.34]
[1769995247931,30.45800762,101.65,101.57,272.38]
[1769995248133,92.99793677,101.65,101.54,410.4357]
[1769995248337,30.45800762,101.62,101.53,8.8723]
[1769995248525,30.45800762,101.62,101.55,137.9937]
[1769995248728,30.45800762,101.62,101.52,138.0292]
[1769995248937,30.45800762,101.62,101.53,138.0176]
[1769995249428,30.45800762,101.62,101.53,146.8899]
[1769995249828,30.45800762,101.62,101.55,137.9934]
[1769995250029,92.99793677,101.65,101.56,8.8697]
[1769995250224,62.54275804,101.61,101.51,410.5581]
[1769995250426,62.54275804,101.61,101.53,8.8724]
[1769995250728,62.54275804,101.61,101.52,138.0342]
[1769995250929,30.45800762,101.62,101.53,138.0161]
[1769995251125,30.45800762,101.62,101.54,419.3725]
[1769995251625,62.54570703,101.64,101.56,146.8499]
[1769995251825,62.54570703,101.64,101.55,410.8042]
[1769995252230,62.54570703,101.64,101.55,281.691]
[1769995252731,62.54570703,101.64,101.55,272.82]
[1769995253343,30.45800762,101.62,101.55,272.82]
[1769995253527,93.0030203,101.62,101.52,273.02]
[1769995253723,239.7683203,101.62,101.52,281.8932]
[1769995253926,93.0030203,101.62,101.52,419.928]
[1769995254131,93.0030203,101.62,101.52,281.8932]
[1769995254332,93.0030203,101.59,101.48,522.01126428]
[1769995254541,30.45800762,101.56,101.45,138.1176]
[1769995254833,93.00131627,101.56,101.46,146.9915]
[1769995255633,62.54330865,101.55,101.45,273.1]
[1769995255831,62.54330865,101.55,101.45,411.2298]
[1769995256232,93.00131627,101.53,101.44,138.1431]
[1769995256628,93.00131627,101.53,101.44,147.0236]
[1769995256836,93.00131627,101.53,101.45,138.1298]
[1769995257133,93.00131627,101.53,101.43,411.0849]
[1769995257330,93.00131627,101.53,101.41,138.1844]
[1769995257331,62.54281917,101.52,101.41,138.1844]
[1769995257536,62.54281917,101.52,101.42,272.86]
[1769995257732,30.45800762,101.5,101.42,272.86]
[1769995258234,30.45800762,101.5,101.42,138.1701]
[1769995258437,30.45800762,101.5,101.42,281.8619]
[1769995258639,30.45800762,101.5,101.42,420.0324]
[1769995258844,30.45800762,101.5,101.43,138.1534]
[1769995259035,62.54281917,101.52,101.43,147.0348]
[1769995259437,62.54281917,101.52,101.43,147.0387]
[1769995259638,30.45800762,101.53,101.45,138.1283]
[1769995259839,93.00362507,101.55,101.47,138.1025]
[1769995260242,62.54561745,101.54,101.45,273.36]
[1769995260444,62.54561745,101.54,101.45,411.4897]
[1769995260638,62.54323291,101.51,101.41,138.1786]
[1769995260942,62.54323291,101.48,101.39,273.64]
[1769995261134,138.0511,101.51,101.39,273.64]
[1769995261135,62.54323291,101.51,101.42,138.1666]
[1769995261334,62.54323291,101.54,101.45,138.1297]
[1769995261533,93.00124053,101.56,101.46,411.8293]
[1769995261740,62.54323291,101.55,101.46,273.72]
[1769995261941,30.45800762,101.53,101.46,273.72]
[1769995262137,93.00124053,101.53,101.44,282.6602]
[1769995262337,62.54323291,101.51,101.42,138.1708]
[1769995262839,62.54323291,101.51,101.41,138.1719]
[1769995263043,92.94431265,101.53,101.43,138.1505]
[1769995263238,62.48630503,101.52,101.43,273.92]
[1769995264539,30.45800762,101.5,101.41,138.1719]
[1769995264741,30.45800762,101.5,101.38,138.2143]
[1769995264742,62.47755677,101.49,101.38,138.2143]
[1769995264935,30.45800762,101.47,101.39,147.0948]